[Event "*** SCC Grand Prix: Titled Tuesday Blitz"]
[Site "Chess.com"]
[Date "2020.06.09"]
[Round "6"]
[White "BocharovD"]
[Black "Hikaru"]
[Result "1/2-1/2"]
[WhiteElo "2761"]
[BlackElo "3222"]
[TimeControl "180+1"]
[EndTime "10:07:44 PDT"]
[Termination "Game drawn by repetition"]

1. Nf3 {[%clk 0:03:00.9]} 1... g6 {[%clk 0:02:58]} 2. d4 {[%clk 0:02:59.3]} 2...
Bg7 {[%clk 0:02:58.7]} 3. g3 {[%clk 0:02:59.7]} 3... d6 {[%clk 0:02:59]} 4. Bg2
{[%clk 0:02:59.3]} 4... Bd7 {[%clk 0:02:59.9]} 5. c4 {[%clk 0:02:57.3]} 5... Nc6
{[%clk 0:02:59.9]} 6. Nc3 {[%clk 0:02:57.1]} 6... Qc8 {[%clk 0:02:59.8]} 7. h3
{[%clk 0:02:56.4]} 7... Nf6 {[%clk 0:02:52.9]} 8. e4 {[%clk 0:02:56.1]} 8... O-O
{[%clk 0:02:50.3]} 9. Be3 {[%clk 0:02:55.9]} 9... e5 {[%clk 0:02:50.6]} 10. d5
{[%clk 0:02:55.5]} 10... Ne7 {[%clk 0:02:51.2]} 11. c5 {[%clk 0:02:48.7]} 11...
Ne8 {[%clk 0:02:49.3]} 12. Rc1 {[%clk 0:02:43.7]} 12... f5 {[%clk 0:02:40.7]}
13. cxd6 {[%clk 0:02:38.9]} 13... Nxd6 {[%clk 0:02:27.1]} 14. Bc5 {[%clk
0:02:33.9]} 14... Qe8 {[%clk 0:02:12.5]} 15. O-O {[%clk 0:02:30.2]} 15... f4
{[%clk 0:02:08.7]} 16. gxf4 {[%clk 0:02:17.9]} 16... Rxf4 {[%clk 0:02:06.5]} 17.
Be3 {[%clk 0:02:17.8]} 17... Rf8 {[%clk 0:02:05]} 18. Ng5 {[%clk 0:02:03.5]}
18... Rd8 {[%clk 0:01:40.7]} 19. Qb3 {[%clk 0:01:52.7]} 19... h6 {[%clk
0:01:29.3]} 20. Ne6 {[%clk 0:01:51.5]} 20... Bxe6 {[%clk 0:01:30]} 21. dxe6
{[%clk 0:01:52.4]} 21... c6 {[%clk 0:01:30.9]} 22. Rfd1 {[%clk 0:01:47.2]} 22...
b6 {[%clk 0:01:29.9]} 23. Qa4 {[%clk 0:01:22.3]} 23... Nec8 {[%clk 0:01:25.8]}
24. Rd3 {[%clk 0:00:55.3]} 24... Kh7 {[%clk 0:01:09.9]} 25. Rcd1 {[%clk
0:00:53.8]} 25... Rf6 {[%clk 0:01:08.1]} 26. e7 {[%clk 0:00:33.2]} 26... Nxe7
{[%clk 0:01:04.3]} 27. Qxa7 {[%clk 0:00:29.5]} 27... Nec8 {[%clk 0:01:04.9]} 28.
Qa6 {[%clk 0:00:15]} 28... b5 {[%clk 0:01:00.1]} 29. a4 {[%clk 0:00:13.7]} 29...
b4 {[%clk 0:00:22.5]} 30. Na2 {[%clk 0:00:13.5]} 30... b3 {[%clk 0:00:23.1]} 31.
Nc3 {[%clk 0:00:13]} 31... g5 {[%clk 0:00:21.5]} 32. Bc5 {[%clk 0:00:09.4]}
32... Bf8 {[%clk 0:00:21]} 33. a5 {[%clk 0:00:07.7]} 33... Qf7 {[%clk
0:00:21.3]} 34. Qxc6 {[%clk 0:00:05.1]} 34... Nb7 {[%clk 0:00:18.1]} 35. Qxb7
{[%clk 0:00:02.5]} 35... Qxb7 {[%clk 0:00:17.8]} 36. Rxd8 {[%clk 0:00:03.1]}
36... Bg7 {[%clk 0:00:10.3]} 37. R1d7 {[%clk 0:00:02]} 37... Qc6 {[%clk
0:00:10.9]} 38. Be7 {[%clk 0:00:02.1]} 38... Rf7 {[%clk 0:00:09.4]} 39. Nd5
{[%clk 0:00:02.6]} 39... Nxe7 {[%clk 0:00:10]} 40. Nxe7 {[%clk 0:00:03]} 40...
Qc1+ {[%clk 0:00:10.7]} 41. Bf1 {[%clk 0:00:03.1]} 41... Qf4 {[%clk 0:00:10.6]}
42. Nf5 {[%clk 0:00:03.3]} 42... Rxf5 {[%clk 0:00:06.7]} 43. exf5 {[%clk
0:00:03]} 43... g4 {[%clk 0:00:07.6]} 44. Rc8 {[%clk 0:00:01.8]} 44... g3 {[%clk
0:00:06.5]} 45. fxg3 {[%clk 0:00:02.7]} 45... Qe3+ {[%clk 0:00:06.5]} 46. Kh1
{[%clk 0:00:02.7]} 46... Qe1 {[%clk 0:00:06.5]} 47. Kg2 {[%clk 0:00:03.1]} 47...
Qe4+ {[%clk 0:00:05.6]} 48. Kg1 {[%clk 0:00:02.6]} 48... Qe3+ {[%clk 0:00:05.9]}
49. Kg2 {[%clk 0:00:03.5]} 49... Qe4+ {[%clk 0:00:06.3]} 50. Kg1 {[%clk
0:00:04]} 50... Qe3+ {[%clk 0:00:06.8]} 1/2-1/2

[Event "*** SCC Grand Prix: Titled Tuesday Blitz"]
[Site "Chess.com"]
[Date "2020.06.09"]
[Round "6"]
[White "publicaccountcze"]
[Black "Sanyura"]
[Result "0-1"]
[WhiteElo "2240"]
[BlackElo "2482"]
[TimeControl "180+1"]
[EndTime "10:07:44 PDT"]
[Termination "Sanyura won on time"]

1. e4 {[%clk 0:03:00.9]} 1... c5 {[%clk 0:02:59.7]} 2. Nf3 {[%clk 0:03:00.9]}
2... e6 {[%clk 0:03:00]} 3. d4 {[%clk 0:03:01.1]} 3... cxd4 {[%clk 0:03:00.9]}
4. Nxd4 {[%clk 0:03:01.4]} 4... Nf6 {[%clk 0:03:01.5]} 5. Nc3 {[%clk 0:03:01.2]}
5... Nc6 {[%clk 0:03:01.8]} 6. Be3 {[%clk 0:03:00.6]} 6... Bb4 {[%clk
0:03:01.1]} 7. Bd3 {[%clk 0:02:52.8]} 7... d5 {[%clk 0:03:00.8]} 8. exd5 {[%clk
0:02:51.6]} 8... exd5 {[%clk 0:02:57.8]} 9. O-O {[%clk 0:02:49.1]} 9... O-O
{[%clk 0:02:57.2]} 10. Nce2 {[%clk 0:02:46.3]} 10... Ng4 {[%clk 0:02:54.7]} 11.
Bf4 {[%clk 0:02:30.7]} 11... Bc5 {[%clk 0:02:44.7]} 12. c3 {[%clk 0:02:30]}
12... Qf6 {[%clk 0:02:40.9]} 13. h3 {[%clk 0:02:26.3]} 13... Nge5 {[%clk
0:02:39.9]} 14. Bc2 {[%clk 0:02:16.9]} 14... Ng6 {[%clk 0:02:04.6]} 15. Bg3
{[%clk 0:02:13.8]} 15... Bd7 {[%clk 0:02:02]} 16. Nb3 {[%clk 0:02:05.2]} 16...
Bb6 {[%clk 0:01:54.6]} 17. Ned4 {[%clk 0:02:04.3]} 17... Rae8 {[%clk 0:01:53.1]}
18. Qd3 {[%clk 0:01:44.6]} 18... Nce5 {[%clk 0:01:49.5]} 19. Bxe5 {[%clk
0:01:36.1]} 19... Rxe5 {[%clk 0:01:50.4]} 20. Nf3 {[%clk 0:01:32.4]} 20... Bf5
{[%clk 0:01:49.5]} 21. Qd2 {[%clk 0:01:18.4]} 21... Bxc2 {[%clk 0:01:42.1]} 22.
Nxe5 {[%clk 0:01:11]} 22... Nxe5 {[%clk 0:01:38.9]} 23. Qxc2 {[%clk 0:01:10.7]}
23... Qf4 {[%clk 0:01:30.9]} 24. Qe2 {[%clk 0:01:04.7]} 24... Re8 {[%clk
0:01:27.4]} 25. Rae1 {[%clk 0:01:00.4]} 25... h6 {[%clk 0:01:23.3]} 26. Qd2
{[%clk 0:00:43]} 26... Qg3 {[%clk 0:00:25.6]} 27. Nd4 {[%clk 0:00:38.3]} 27...
Bxd4 {[%clk 0:00:24.4]} 28. Rxe5 {[%clk 0:00:20.4]} 28... Bxf2+ {[%clk
0:00:21.6]} 29. Qxf2 {[%clk 0:00:19.1]} 29... Qxf2+ {[%clk 0:00:21.6]} 30. Rxf2
{[%clk 0:00:19.1]} 30... Rxe5 {[%clk 0:00:22.1]} 31. Rd2 {[%clk 0:00:19]} 31...
f5 {[%clk 0:00:21.6]} 32. Kf2 {[%clk 0:00:19.2]} 32... Kf7 {[%clk 0:00:20.9]}
33. Kf3 {[%clk 0:00:19.5]} 33... Kf6 {[%clk 0:00:21.2]} 34. g4 {[%clk
0:00:18.2]} 34... fxg4+ {[%clk 0:00:20.2]} 35. hxg4 {[%clk 0:00:19.1]} 35... g6
{[%clk 0:00:20.7]} 36. Rd4 {[%clk 0:00:18.3]} 36... h5 {[%clk 0:00:20.8]} 37.
Rb4 {[%clk 0:00:18.1]} 37... b6 {[%clk 0:00:20.6]} 38. Ra4 {[%clk 0:00:17.6]}
38... a5 {[%clk 0:00:20.9]} 39. b4 {[%clk 0:00:17.6]} 39... hxg4+ {[%clk
0:00:20.8]} 40. Kxg4 {[%clk 0:00:17.7]} 40... Re4+ {[%clk 0:00:21.4]} 41. Kf3
{[%clk 0:00:17]} 41... Kf5 {[%clk 0:00:21.9]} 42. Ra3 {[%clk 0:00:05.9]} 42...
axb4 {[%clk 0:00:21.9]} 43. cxb4 {[%clk 0:00:05.9]} 43... Rxb4 {[%clk
0:00:22.8]} 44. Rd3 {[%clk 0:00:06.1]} 44... Ke5 {[%clk 0:00:23.1]} 45. a3
{[%clk 0:00:04.9]} 45... Rf4+ {[%clk 0:00:22.4]} 46. Kg3 {[%clk 0:00:04.7]}
46... Rd4 {[%clk 0:00:22]} 47. Rb3 {[%clk 0:00:04.8]} 47... g5 {[%clk
0:00:20.1]} 48. Rxb6 {[%clk 0:00:04.6]} 48... Rd3+ {[%clk 0:00:20.6]} 49. Kg4
{[%clk 0:00:04.8]} 49... Rxa3 {[%clk 0:00:20.9]} 50. Kxg5 {[%clk 0:00:05]} 50...
Ra1 {[%clk 0:00:21.5]} 51. Kg4 {[%clk 0:00:04.6]} 51... Rf1 {[%clk 0:00:21]} 52.
Kg3 {[%clk 0:00:03.5]} 52... d4 {[%clk 0:00:17.5]} 53. Kg2 {[%clk 0:00:03.2]}
53... Rf7 {[%clk 0:00:17.5]} 54. Rb3 {[%clk 0:00:03]} 54... Ke4 {[%clk
0:00:17.7]} 55. Ra3 {[%clk 0:00:01.2]} 55... d3 {[%clk 0:00:17.8]} 0-1

[Event "*** SCC Grand Prix: Titled Tuesday Blitz"]
[Site "Chess.com"]
[Date "2020.06.09"]
[Round "6"]
[White "Guenplen"]
[Black "novendrapriasmoro"]
[Result "1-0"]
[WhiteElo "2903"]
[BlackElo "2666"]
[TimeControl "180+1"]
[EndTime "10:07:49 PDT"]
[Termination "Guenplen won on time"]

1. d4 {[%clk 0:03:00.9]} 1... Nf6 {[%clk 0:02:59.8]} 2. Bf4 {[%clk 0:03:00.9]}
2... g6 {[%clk 0:02:59.9]} 3. Nc3 {[%clk 0:03:00.6]} 3... Bg7 {[%clk 0:02:59.8]}
4. e4 {[%clk 0:03:00.7]} 4... d6 {[%clk 0:03:00.7]} 5. Qd2 {[%clk 0:02:59.8]}
5... c6 {[%clk 0:02:59.9]} 6. f3 {[%clk 0:02:58.7]} 6... b5 {[%clk 0:02:59.7]}
7. Bh6 {[%clk 0:02:52.5]} 7... Bxh6 {[%clk 0:02:55.9]} 8. Qxh6 {[%clk
0:02:53.4]} 8... b4 {[%clk 0:02:55]} 9. Nd1 {[%clk 0:02:33.8]} 9... Qa5 {[%clk
0:02:54.2]} 10. Qd2 {[%clk 0:02:25.1]} 10... Ba6 {[%clk 0:02:51.4]} 11. Be2
{[%clk 0:02:15.7]} 11... Qb6 {[%clk 0:02:44.7]} 12. Ne3 {[%clk 0:02:11.9]} 12...
O-O {[%clk 0:02:23.2]} 13. Bxa6 {[%clk 0:02:10.2]} 13... Nxa6 {[%clk 0:02:21]}
14. Ne2 {[%clk 0:02:10.5]} 14... e5 {[%clk 0:02:19.5]} 15. h4 {[%clk 0:02:05]}
15... Rfe8 {[%clk 0:02:09.5]} 16. h5 {[%clk 0:02:00.6]} 16... exd4 {[%clk
0:02:07]} 17. Nxd4 {[%clk 0:01:47.9]} 17... Nxe4 {[%clk 0:02:03.3]} 18. fxe4
{[%clk 0:01:45.1]} 18... Rxe4 {[%clk 0:02:04.2]} 19. O-O-O {[%clk 0:01:44.2]}
19... Rae8 {[%clk 0:01:57]} 20. hxg6 {[%clk 0:01:37.7]} 20... fxg6 {[%clk
0:01:57.9]} 21. Nef5 {[%clk 0:01:33.5]} 21... Qc7 {[%clk 0:01:37.5]} 22. Qg5
{[%clk 0:01:06.7]} 22... Rf8 {[%clk 0:00:38.3]} 23. Rdf1 {[%clk 0:00:22.6]}
23... Kh8 {[%clk 0:00:27.4]} 24. Nh6 {[%clk 0:00:13.4]} 24... Qg7 {[%clk
0:00:22.9]} 25. Rxf8+ {[%clk 0:00:09.5]} 25... Qxf8 {[%clk 0:00:23.8]} 26. Nf3
{[%clk 0:00:04.9]} 26... Nc5 {[%clk 0:00:22.5]} 27. Ng4 {[%clk 0:00:04.8]} 27...
Qf4+ {[%clk 0:00:17.4]} 28. Qxf4 {[%clk 0:00:04.6]} 28... Rxf4 {[%clk
0:00:18.3]} 29. Ne3 {[%clk 0:00:04.9]} 29... Kg7 {[%clk 0:00:17.9]} 30. a3
{[%clk 0:00:04.3]} 30... bxa3 {[%clk 0:00:17.3]} 31. bxa3 {[%clk 0:00:05.2]}
31... h6 {[%clk 0:00:17.4]} 32. Nd1 {[%clk 0:00:05]} 32... d5 {[%clk 0:00:17.4]}
33. Nc3 {[%clk 0:00:05.1]} 33... Rc4 {[%clk 0:00:17.3]} 34. Kb2 {[%clk
0:00:04.4]} 34... Rg4 {[%clk 0:00:15.1]} 35. Rh2 {[%clk 0:00:03.9]} 35... d4
{[%clk 0:00:14.9]} 36. Ne2 {[%clk 0:00:03.8]} 36... Ne6 {[%clk 0:00:14.4]} 37.
Nc1 {[%clk 0:00:03.6]} 37... c5 {[%clk 0:00:14.4]} 38. Nd3 {[%clk 0:00:03.8]}
38... Re4 {[%clk 0:00:13.7]} 39. Nf2 {[%clk 0:00:02.7]} 39... Re3 {[%clk
0:00:13.4]} 40. Nd3 {[%clk 0:00:02.8]} 40... c4 {[%clk 0:00:13.4]} 41. Nde5
{[%clk 0:00:03.4]} 41... c3+ {[%clk 0:00:12.7]} 42. Kb3 {[%clk 0:00:03.9]} 42...
Re2 {[%clk 0:00:07.3]} 43. Nd3 {[%clk 0:00:03.5]} 43... a5 {[%clk 0:00:06.4]}
44. a4 {[%clk 0:00:03.5]} 44... g5 {[%clk 0:00:05.7]} 45. Rh1 {[%clk 0:00:03.7]}
45... Rxg2 {[%clk 0:00:05.4]} 46. Nfe5 {[%clk 0:00:04.2]} 46... Nf4 {[%clk
0:00:05.3]} 47. Nxf4 {[%clk 0:00:03.6]} 47... gxf4 {[%clk 0:00:06.2]} 48. Nd3
{[%clk 0:00:04.5]} 48... f3 {[%clk 0:00:06.3]} 49. Rf1 {[%clk 0:00:05]} 49...
Rg3 {[%clk 0:00:06.4]} 50. Kc4 {[%clk 0:00:05.5]} 50... h5 {[%clk 0:00:06.3]}
51. Kxd4 {[%clk 0:00:06]} 51... h4 {[%clk 0:00:06.6]} 52. Ke3 {[%clk 0:00:06.6]}
52... h3 {[%clk 0:00:07.1]} 53. Rxf3 {[%clk 0:00:06.8]} 53... h2 {[%clk
0:00:06.8]} 54. Rxg3+ {[%clk 0:00:07]} 1-0

[Event "*** SCC Grand Prix: Titled Tuesday Blitz"]
[Site "Chess.com"]
[Date "2020.06.09"]
[Round "6"]
[White "topotun"]
[Black "vugarrasulov"]
[Result "0-1"]
[WhiteElo "2606"]
[BlackElo "2798"]
[TimeControl "180+1"]
[EndTime "10:07:49 PDT"]
[Termination "vugarrasulov won on time"]

1. e4 {[%clk 0:03:00.9]} 1... c5 {[%clk 0:02:59.8]} 2. Nf3 {[%clk 0:03:01.1]}
2... d6 {[%clk 0:03:00]} 3. d4 {[%clk 0:03:01.4]} 3... cxd4 {[%clk 0:03:00.9]}
4. Nxd4 {[%clk 0:03:02.3]} 4... Nf6 {[%clk 0:03:01.4]} 5. f3 {[%clk 0:03:02.2]}
5... g6 {[%clk 0:02:58.4]} 6. Nc3 {[%clk 0:02:57.8]} 6... Bg7 {[%clk 0:02:58.8]}
7. Be3 {[%clk 0:02:57.9]} 7... O-O {[%clk 0:02:59.1]} 8. Qd2 {[%clk 0:02:58.4]}
8... Nc6 {[%clk 0:02:59.5]} 9. O-O-O {[%clk 0:02:58.9]} 9... d5 {[%clk
0:02:53.4]} 10. exd5 {[%clk 0:02:59.8]} 10... Nxd5 {[%clk 0:02:53.7]} 11. Nxc6
{[%clk 0:03:00.3]} 11... bxc6 {[%clk 0:02:54.6]} 12. Nxd5 {[%clk 0:03:00.6]}
12... cxd5 {[%clk 0:02:54.6]} 13. Bh6 {[%clk 0:03:01.2]} 13... Bxh6 {[%clk
0:02:48.2]} 14. Qxh6 {[%clk 0:03:02.1]} 14... Qb6 {[%clk 0:02:47]} 15. h4 {[%clk
0:03:00.9]} 15... Rb8 {[%clk 0:02:33.8]} 16. b3 {[%clk 0:03:00.6]} 16... Qf6
{[%clk 0:02:26.2]} 17. h5 {[%clk 0:03:00.7]} 17... Bf5 {[%clk 0:02:10.8]} 18.
hxg6 {[%clk 0:02:59.8]} 18... Bxg6 {[%clk 0:02:08]} 19. Bd3 {[%clk 0:02:59.8]}
19... e6 {[%clk 0:01:57.9]} 20. Bxg6 {[%clk 0:02:50.7]} 20... Qxg6 {[%clk
0:01:58.8]} 21. Qd2 {[%clk 0:02:48.4]} 21... Rfc8 {[%clk 0:01:55.6]} 22. Kb1
{[%clk 0:02:13.7]} 22... Rc7 {[%clk 0:01:28.4]} 23. Rh6 {[%clk 0:01:52.1]} 23...
Qg7 {[%clk 0:01:27.3]} 24. Rdh1 {[%clk 0:01:50.7]} 24... Rbc8 {[%clk 0:01:26.8]}
25. Rxh7 {[%clk 0:01:45.3]} 25... Qxh7 {[%clk 0:01:27.7]} 26. Rxh7 {[%clk
0:01:45.6]} 26... Kxh7 {[%clk 0:01:28.6]} 27. a4 {[%clk 0:01:31.8]} 27... Kg6
{[%clk 0:01:25.7]} 28. g3 {[%clk 0:01:29.1]} 28... Rc3 {[%clk 0:01:20.6]} 29.
Qf2 {[%clk 0:01:23.1]} 29... a5 {[%clk 0:01:18.5]} 30. Qd4 {[%clk 0:01:20.2]}
30... f5 {[%clk 0:01:12.1]} 31. Qe5 {[%clk 0:01:00.6]} 31... Kf7 {[%clk
0:01:10]} 32. g4 {[%clk 0:00:52.6]} 32... fxg4 {[%clk 0:00:59.9]} 33. Qh5+
{[%clk 0:00:39.4]} 33... Ke7 {[%clk 0:00:58.6]} 34. fxg4 {[%clk 0:00:35.2]}
34... Kd6 {[%clk 0:00:53.7]} 35. Qh2+ {[%clk 0:00:33.4]} 35... e5 {[%clk
0:00:52.3]} 36. Qh6+ {[%clk 0:00:33.4]} 36... Kc5 {[%clk 0:00:51.4]} 37. Qa6
{[%clk 0:00:32]} 37... Kd4 {[%clk 0:00:50.2]} 38. Qxa5 {[%clk 0:00:28.2]} 38...
e4 {[%clk 0:00:50.4]} 39. Qb6+ {[%clk 0:00:27.7]} 39... Ke5 {[%clk 0:00:49.9]}
40. g5 {[%clk 0:00:28]} 40... e3 {[%clk 0:00:47.3]} 41. Qf6+ {[%clk 0:00:26.8]}
41... Ke4 {[%clk 0:00:47.9]} 42. Qe6+ {[%clk 0:00:22.5]} 42... Kf4 {[%clk
0:00:46.2]} 43. Qf6+ {[%clk 0:00:20.1]} 43... Kg3 {[%clk 0:00:44.1]} 44. g6
{[%clk 0:00:19.8]} 44... e2 {[%clk 0:00:44.3]} 45. Qg5+ {[%clk 0:00:20]} 45...
Kf2 {[%clk 0:00:44.2]} 46. Qh4+ {[%clk 0:00:16.6]} 46... Rg3 {[%clk 0:00:44]}
47. Qd4+ {[%clk 0:00:15.7]} 47... Kg2 {[%clk 0:00:42.1]} 48. Qd2 {[%clk
0:00:15.4]} 48... Re8 {[%clk 0:00:40.3]} 49. Qxd5+ {[%clk 0:00:14.8]} 49... Kg1
{[%clk 0:00:35]} 50. Qd4+ {[%clk 0:00:14.1]} 50... Ree3 {[%clk 0:00:32.9]} 51.
g7 {[%clk 0:00:10.5]} 51... e1=Q+ {[%clk 0:00:33]} 52. Kb2 {[%clk 0:00:10.7]}
52... Qf2 {[%clk 0:00:28.2]} 53. Qd1+ {[%clk 0:00:03.6]} 53... Kg2 {[%clk
0:00:28.6]} 54. Qd5+ {[%clk 0:00:03.3]} 54... Ref3 {[%clk 0:00:29.1]} 55. g8=Q
{[%clk 0:00:04]} 55... Rxg8 {[%clk 0:00:27.9]} 56. Qxg8+ {[%clk 0:00:04.9]}
56... Rg3 {[%clk 0:00:26.6]} 57. Qh8 {[%clk 0:00:04.1]} 57... Qf5 {[%clk
0:00:22.6]} 0-1

[Event "*** SCC Grand Prix: Titled Tuesday Blitz"]
[Site "Chess.com"]
[Date "2020.06.09"]
[Round "6"]
[White "Chuchofrio1"]
[Black "Generalas"]
[Result "0-1"]
[WhiteElo "2197"]
[BlackElo "2367"]
[TimeControl "180+1"]
[EndTime "10:07:49 PDT"]
[Termination "Generalas won by checkmate"]

1. d4 {[%clk 0:03:00.9]} 1... Nf6 {[%clk 0:02:58.7]} 2. c4 {[%clk 0:03:00.7]}
2... c5 {[%clk 0:02:58.8]} 3. d5 {[%clk 0:03:00.6]} 3... b5 {[%clk 0:02:58.9]}
4. cxb5 {[%clk 0:03:00.8]} 4... a6 {[%clk 0:02:58.9]} 5. bxa6 {[%clk 0:02:58.2]}
5... g6 {[%clk 0:02:58.9]} 6. Nc3 {[%clk 0:02:57.9]} 6... Bxa6 {[%clk
0:02:58.9]} 7. g3 {[%clk 0:02:58.1]} 7... Bg7 {[%clk 0:02:57.7]} 8. Bg2 {[%clk
0:02:58.1]} 8... d6 {[%clk 0:02:58]} 9. Nf3 {[%clk 0:02:55.9]} 9... O-O {[%clk
0:02:58]} 10. O-O {[%clk 0:02:55.8]} 10... Nbd7 {[%clk 0:02:58.6]} 11. Rb1
{[%clk 0:02:56]} 11... Nb6 {[%clk 0:02:58.4]} 12. b3 {[%clk 0:02:53.4]} 12...
Bb7 {[%clk 0:02:14.6]} 13. Nh4 {[%clk 0:02:52.5]} 13... Ng4 {[%clk 0:01:58.8]}
14. Bb2 {[%clk 0:02:50.7]} 14... Bxc3 {[%clk 0:01:48.8]} 15. Bxc3 {[%clk
0:02:49]} 15... Rxa2 {[%clk 0:01:49.5]} 16. h3 {[%clk 0:02:34.4]} 16... Nf6
{[%clk 0:01:44.9]} 17. e4 {[%clk 0:02:25.8]} 17... e6 {[%clk 0:01:14.8]} 18. Qf3
{[%clk 0:01:55.8]} 18... Nbd7 {[%clk 0:01:06]} 19. dxe6 {[%clk 0:01:03.3]} 19...
fxe6 {[%clk 0:00:45.9]} 20. Qe3 {[%clk 0:01:02.2]} 20... e5 {[%clk 0:00:42]} 21.
f4 {[%clk 0:00:59.4]} 21... Ba6 {[%clk 0:00:31.5]} 22. Rf2 {[%clk 0:00:54.7]}
22... Rxf2 {[%clk 0:00:30.5]} 23. Qxf2 {[%clk 0:00:54.7]} 23... exf4 {[%clk
0:00:24.7]} 24. Qxf4 {[%clk 0:00:37.1]} 24... Nd5 {[%clk 0:00:22.4]} 25. Qd2
{[%clk 0:00:32.2]} 25... Nxc3 {[%clk 0:00:22.3]} 26. Qxc3 {[%clk 0:00:32.4]}
26... Ne5 {[%clk 0:00:22.5]} 27. Nf3 {[%clk 0:00:30]} 27... Qe7 {[%clk
0:00:18.6]} 28. Rd1 {[%clk 0:00:24.3]} 28... Bb7 {[%clk 0:00:15.7]} 29. Re1
{[%clk 0:00:20.6]} 29... Nxf3+ {[%clk 0:00:14.8]} 30. Bxf3 {[%clk 0:00:20.5]}
30... Qf6 {[%clk 0:00:11.6]} 31. Qc4+ {[%clk 0:00:20.5]} 31... Kg7 {[%clk
0:00:11.7]} 32. Rf1 {[%clk 0:00:20.5]} 32... Qe5 {[%clk 0:00:10.3]} 33. Kg2
{[%clk 0:00:19.4]} 33... g5 {[%clk 0:00:10.3]} 34. Qe2 {[%clk 0:00:18.7]} 34...
h6 {[%clk 0:00:09.9]} 35. h4 {[%clk 0:00:17.8]} 35... g4 {[%clk 0:00:08.9]} 36.
Bxg4 {[%clk 0:00:17]} 36... Bxe4+ {[%clk 0:00:08.9]} 37. Kh3 {[%clk 0:00:16.2]}
37... Rxf1 {[%clk 0:00:08.7]} 38. Qxf1 {[%clk 0:00:16.3]} 38... h5 {[%clk
0:00:08.2]} 39. Bf3 {[%clk 0:00:14.6]} 39... Qf5+ {[%clk 0:00:07.2]} 40. Kg2
{[%clk 0:00:14.3]} 40... Qxf3+ {[%clk 0:00:07.3]} 41. Qxf3 {[%clk 0:00:14.3]}
41... Bxf3+ {[%clk 0:00:08]} 42. Kxf3 {[%clk 0:00:14.8]} 42... d5 {[%clk
0:00:07.8]} 43. Ke3 {[%clk 0:00:14.9]} 43... Kf6 {[%clk 0:00:07.6]} 44. Kd3
{[%clk 0:00:14.4]} 44... Kf5 {[%clk 0:00:07.6]} 45. Ke3 {[%clk 0:00:14.8]} 45...
Kg4 {[%clk 0:00:07.7]} 46. Kf2 {[%clk 0:00:14.7]} 46... d4 {[%clk 0:00:08.1]}
47. Ke2 {[%clk 0:00:14.4]} 47... Kxg3 {[%clk 0:00:08.2]} 48. Kd3 {[%clk
0:00:14.6]} 48... Kxh4 {[%clk 0:00:08.1]} 49. Kc4 {[%clk 0:00:15]} 49... Kg4
{[%clk 0:00:07.6]} 50. Kxc5 {[%clk 0:00:15.9]} 50... d3 {[%clk 0:00:07.9]} 51.
b4 {[%clk 0:00:15.7]} 51... d2 {[%clk 0:00:08.4]} 52. b5 {[%clk 0:00:16.6]}
52... d1=Q {[%clk 0:00:08.8]} 53. b6 {[%clk 0:00:17.5]} 53... Qc2+ {[%clk
0:00:09.1]} 54. Kb5 {[%clk 0:00:17.3]} 54... Qb3+ {[%clk 0:00:09.4]} 55. Ka6
{[%clk 0:00:18.2]} 55... h4 {[%clk 0:00:09.7]} 56. Kb7 {[%clk 0:00:19.1]} 56...
h3 {[%clk 0:00:09.9]} 57. Kc7 {[%clk 0:00:20]} 57... h2 {[%clk 0:00:10.1]} 58.
b7 {[%clk 0:00:20.9]} 58... h1=Q {[%clk 0:00:09.1]} 59. b8=Q {[%clk 0:00:21.8]}
59... Qxb8+ {[%clk 0:00:08.9]} 60. Kxb8 {[%clk 0:00:21.9]} 60... Qc1 {[%clk
0:00:09.3]} 61. Kb7 {[%clk 0:00:21.8]} 61... Kf5 {[%clk 0:00:10]} 62. Kb6 {[%clk
0:00:22.7]} 62... Ke5 {[%clk 0:00:10.9]} 63. Kb5 {[%clk 0:00:23.6]} 63... Kd5
{[%clk 0:00:11.6]} 64. Kb4 {[%clk 0:00:24.5]} 64... Qb2+ {[%clk 0:00:12]} 65.
Ka5 {[%clk 0:00:22.4]} 65... Kc5 {[%clk 0:00:12.6]} 66. Ka6 {[%clk 0:00:22.4]}
66... Qb6# {[%clk 0:00:13.1]} 0-1